fUSD/lending_fUSD_20260511
["ID","MTS","AMOUNT","RATE_DAILY","PERIOD"]
[422007428,1778453433000,-444.21444635,0.00014231,2]
[422007427,1778453433000,-15.5,0.00014231,2]
[422007429,1778453433000,-500.0,0.00014504,2]
[422007431,1778453433000,-214107.06491902,0.00014505,2]
[422007430,1778453433000,-440.04755521,0.00014504,2]
[422007433,1778453433000,-40570.40243542,0.00014505,2]
[422007436,1778453433000,-151.0,0.00014505,2]
[422007441,1778453433000,-151.0,0.00014505,2]
[422007432,1778453433000,-562.5123601,0.00014505,2]
[422007434,1778453433000,-11882.4975395,0.00014505,2]
[422007438,1778453433000,-27951.5041932,0.00014505,2]
[422007448,1778453433000,-8228.8715104,0.00014505,2]
[422007437,1778453433000,-15541.0675483,0.00014505,2]
[422007449,1778453433000,-231.903902,0.00014505,2]
[422007439,1778453433000,-151.0,0.00014505,2]
[422007445,1778453433000,-151.0,0.00014505,2]
[422007440,1778453433000,-151.0,0.00014505,2]
[422007435,1778453433000,-131680.2884768,0.00014505,2]
[422007468,1778453433000,-1000.0,0.00014521,2]
[422007479,1778453433000,-184.899,0.000146,2]
[422007473,1778453433000,-160.56875636,0.00014573,2]
[422007501,1778453433000,-700.0,0.00014795,2]
[422007503,1778453433000,-1880.1178,0.000148,2]
[422007506,1778453433000,-151.0,0.00014816,2]
[422007505,1778453433000,-153.6029,0.00014816,2]
[422007509,1778453433000,-151.0,0.00014816,2]
[422007507,1778453433000,-151.0,0.00014816,2]
[422007508,1778453433000,-151.0,0.00014816,2]
[422007504,1778453433000,-809.03,0.00014804,2]
[422007512,1778453433000,-333.33333,0.0001485,2]
[422007471,1778453433000,-5706.98173295,0.00014568,2]
[422007510,1778453433000,-2000.0,0.00014833,2]
[422007515,1778453433000,-333.33333,0.0001486,2]
[422007516,1778453433000,-156.30737109,0.00014884,2]
[422007514,1778453433000,-150.0,0.00014856,2]
[422007518,1778453433000,-200.0,0.0001489,2]
[422007517,1778453433000,-200.0,0.0001489,2]
[422007513,1778453433000,-333.33333,0.0001485,2]
[422007520,1778453433000,-200.0,0.0001489,2]
[422007519,1778453433000,-200.0,0.0001489,2]
[422007502,1778453433000,-150.0,0.00014799,2]
[422007499,1778453433000,-5706.98173295,0.00014789,2]
[422007511,1778453433000,-152.0,0.00014837,2]
[422007492,1778453433000,-150.0,0.00014737,2]
[422007500,1778453433000,-150.0,0.00014791,2]
[422007470,1778453433000,-249.61,0.00014567,2]
[422007465,1778453433000,-151.0,0.00014505,2]
[422007469,1778453433000,-150.0,0.0001453,2]
[422007467,1778453433000,-391.2748952,0.00014521,2]
[422007477,1778453433000,-150.0,0.00014595,2]
[422007481,1778453433000,-150.0,0.00014661,2]
[422007485,1778453433000,-150.0,0.00014687,2]
[422007466,1778453433000,-151.0,0.00014505,2]
[422007483,1778453433000,-5706.98173295,0.00014678,2]
[422007490,1778453433000,-150.0,0.00014737,2]
[422007478,1778453433000,-2326.835,0.000146,2]
[422007498,1778453433000,-421.0,0.00014771,5]
[422007494,1778453433000,-223.82507163,0.00014749,2]
[422007496,1778453433000,-352.0,0.00014771,5]
[422007486,1778453433000,-255.0,0.00014704,2]
[422007480,1778453433000,-150.0,0.00014612,2]
[422007488,1778453433000,-150.0,0.00014726,2]
[422007551,1778453434000,-174.50419108,0.00014899,2]
[422007547,1778453434000,-500.0,0.00014899,2]
[422007548,1778453434000,-500.0,0.00014899,2]
[422007549,1778453434000,-500.0,0.00014899,2]
[422007559,1778453434000,-500.0,0.00014899,2]
[422007557,1778453434000,-500.0,0.00014899,2]
[422007554,1778453434000,-500.0,0.00014899,2]
[422007553,1778453434000,-500.0,0.00014899,2]
[422007558,1778453434000,-500.0,0.00014899,2]
[422007552,1778453434000,-500.0,0.00014899,2]
[422007550,1778453434000,-500.0,0.00014899,2]
[422007568,1778453434000,-500.0,0.00014899,2]
[422007555,1778453434000,-500.0,0.00014899,2]
[422007560,1778453434000,-500.0,0.00014899,2]
[422007561,1778453434000,-500.0,0.00014899,2]
[422007562,1778453434000,-500.0,0.00014899,2]
[422007563,1778453434000,-500.0,0.00014899,2]
[422007564,1778453434000,-500.0,0.00014899,2]
[422007565,1778453434000,-500.0,0.00014899,2]
[422007566,1778453434000,-500.0,0.00014899,2]
[422007567,1778453434000,-500.0,0.00014899,2]
[422007570,1778453434000,-500.0,0.00014899,2]
[422007543,1778453434000,-500.0,0.00014899,2]
[422007556,1778453434000,-500.0,0.00014899,2]
[422007542,1778453434000,-500.0,0.00014899,2]
[422007598,1778453434000,-152.0,0.00014975,2]
[422007535,1778453434000,-500.0,0.00014899,2]
[422007581,1778453434000,-576.251148,0.00014899,2]
[422007522,1778453434000,-200.0,0.0001489,2]
[422007521,1778453434000,-305.7658887,0.0001489,2]
[422007523,1778453434000,-200.0,0.0001489,2]
[422007524,1778453434000,-500.0,0.00014899,2]
[422007532,1778453434000,-151.0,0.00014899,2]
[422007529,1778453434000,-500.0,0.00014899,2]
[422007530,1778453434000,-500.0,0.00014899,2]
[422007531,1778453434000,-586.80049804,0.00014899,2]
[422007534,1778453434000,-500.0,0.00014899,2]
[422007533,1778453434000,-500.0,0.00014899,2]
[422007525,1778453434000,-500.0,0.00014899,2]
[422007526,1778453434000,-500.0,0.00014899,2]
[422007527,1778453434000,-501.80635428,0.00014899,2]
[422007528,1778453434000,-500.0,0.00014899,2]
[422007536,1778453434000,-158.19716862,0.00014899,2]
[422007546,1778453434000,-500.0,0.00014899,2]
[422007537,1778453434000,-500.0,0.00014899,2]
[422007540,1778453434000,-500.0,0.00014899,2]
[422007544,1778453434000,-500.0,0.00014899,2]
[422007545,1778453434000,-500.0,0.00014899,2]
[422007538,1778453434000,-500.0,0.00014899,2]
[422007539,1778453434000,-500.0,0.00014899,2]
[422007541,1778453434000,-500.0,0.00014899,2]
[422007580,1778453434000,-576.251148,0.00014899,2]
[422007615,1778453434000,-1122.71385098,0.00014999,5]
[422007572,1778453434000,-151.0,0.00014899,2]
[422007600,1778453434000,-151.0,0.00014984,2]
[422007603,1778453434000,-243.7778175,0.00014986,2]
[422007602,1778453434000,-189.83929851,0.00014986,2]
[422007605,1778453434000,-202.9054993,0.00014986,2]
[422007604,1778453434000,-264.13566986,0.00014986,2]
[422007601,1778453434000,-500.0,0.00014986,2]
[422007608,1778453434000,-151.0,0.00014987,2]
[422007607,1778453434000,-150.0,0.00014986,2]
[422007609,1778453434000,-151.0,0.00014987,2]
[422007618,1778453434000,-500.0,0.00014999,2]
[422007597,1778453434000,-152.0,0.00014975,2]
[422007623,1778453434000,-300.0,0.00014999,2]
[422007616,1778453434000,-1070.90832178,0.00014999,5]
[422007614,1778453434000,-151.0,0.00014997,2]
[422007611,1778453434000,-337.78130058,0.0001499,2]
[422007617,1778453434000,-500.0,0.00014999,2]
[422007610,1778453434000,-177.5813361,0.00014989,2]
[422007613,1778453434000,-151.0,0.00014997,2]
[422007620,1778453434000,-500.0,0.00014999,2]
[422007622,1778453434000,-500.0,0.00014999,2]
[422007621,1778453434000,-500.0,0.00014999,2]
[422007619,1778453434000,-500.0,0.00014999,2]
[422007612,1778453434000,-337.78130058,0.0001499,2]
[422007625,1778453434000,-380.0,0.00015,2]
[422007599,1778453434000,-161.54718026,0.00014975,2]
[422007595,1778453434000,-150.0,0.00014921,2]
[422007571,1778453434000,-151.0,0.00014899,2]
[422007573,1778453434000,-151.0,0.00014899,2]
[422007577,1778453434000,-231.903902,0.00014899,2]
[422007576,1778453434000,-231.903902,0.00014899,2]
[422007578,1778453434000,-231.903902,0.00014899,2]
[422007579,1778453434000,-231.903902,0.00014899,2]
[422007574,1778453434000,-151.0,0.00014899,2]
[422007575,1778453434000,-151.0,0.00014899,2]
[422007582,1778453434000,-576.251148,0.00014899,2]
[422007584,1778453434000,-195.06796117,0.000149,2]
[422007585,1778453434000,-298.64367131,0.000149,2]
[422007586,1778453434000,-200.0,0.000149,2]
[422007587,1778453434000,-153.49400757,0.000149,2]
[422007583,1778453434000,-576.251148,0.00014899,2]
[422007589,1778453434000,-153.49400757,0.000149,2]
[422007588,1778453434000,-153.49400757,0.000149,2]
[422007592,1778453434000,-177.80498273,0.000149,2]
[422007593,1778453434000,-463.68868148,0.000149,2]
[422007591,1778453434000,-6957.746,0.000149,2]
[422007590,1778453434000,-5706.98173295,0.000149,2]
[422007594,1778453434000,-2176.52400416,0.000149,2]
[422007596,1778453434000,-152.0,0.00014975,2]
[422007606,1778453434000,-264.0930522,0.00014986,2]
[422007624,1778453434000,-74294.15992572,0.00015,2]
[422007569,1778453434000,-500.0,0.00014899,2]
[422007631,1778453438000,-3599.16742646,0.00015,2]
[422007630,1778453438000,-26041.49379629,0.00015,2]
[422007640,1778453440000,-279385.26712154,0.00015,2]
[422007652,1778453443000,-330.89872109,0.00014504,2]
[422007653,1778453443000,-169.09243862,0.000149,2]
[422007656,1778453443000,-612.86229935,0.000149,2]
[422007654,1778453443000,-599.1888,0.000149,2]
[422007657,1778453443000,-777327.24336666,0.00015,2]
[422007659,1778453443000,-1000.0,0.00015,2]
[422007660,1778453443000,-1000.0,0.00015,2]
[422007661,1778453443000,-1000.0,0.00015,2]
[422007658,1778453443000,-1000.0,0.00015,2]
[422007662,1778453443000,-1000.0,0.00015,2]
[422007663,1778453443000,-1000.0,0.00015,2]
[422007665,1778453443000,-1000.0,0.00015,2]
[422007668,1778453443000,-1000.0,0.00015,2]
[422007655,1778453443000,-432.15761675,0.000149,2]
[422007664,1778453443000,-1000.0,0.00015,2]
[422007666,1778453443000,-1000.0,0.00015,2]
[422007679,1778453443000,-13784.03123736,0.00015,2]
[422007677,1778453443000,-937534.04266922,0.00015,2]
[422007676,1778453443000,-1053925.88121508,0.00015,2]
[422007675,1778453443000,-796.16345183,0.00015,2]
[422007673,1778453443000,-1000.0,0.00015,2]
[422007678,1778453443000,-8300.84596632,0.00015,2]
[422007670,1778453443000,-1000.0,0.00015,2]
[422007672,1778453443000,-1000.0,0.00015,2]
[422007671,1778453443000,-1000.0,0.00015,2]
[422007669,1778453443000,-1000.0,0.00015,2]
[422007667,1778453443000,-1000.0,0.00015,2]
[422007674,1778453443000,-1000.0,0.00015,2]
[422007754,1778453446000,-244.326734,0.00015,2]
[422007746,1778453446000,-151.0,0.00015,2]
[422007748,1778453446000,-151.0,0.00015,2]
[422007755,1778453446000,-231.903902,0.00015,2]
[422007749,1778453446000,-151.0,0.00015,2]
[422007753,1778453446000,-151.0,0.00015,2]
[422007751,1778453446000,-205.651927,0.00015,2]
[422007752,1778453446000,-151.0,0.00015,2]
[422007759,1778453446000,-231.903902,0.00015,2]
[422007760,1778453446000,-231.903902,0.00015,2]
[422007764,1778453446000,-231.903902,0.00015,2]
[422007767,1778453446000,-576.251148,0.00015,2]
[422007768,1778453446000,-576.251148,0.00015,2]
[422007763,1778453446000,-231.903902,0.00015,2]
[422007761,1778453446000,-231.903902,0.00015,2]
[422007766,1778453446000,-231.903898,0.00015,2]
[422007765,1778453446000,-231.903902,0.00015,2]
[422007757,1778453446000,-231.903902,0.00015,2]
[422007762,1778453446000,-231.903902,0.00015,2]
[422007756,1778453446000,-231.903902,0.00015,2]
[422007750,1778453446000,-151.0,0.00015,2]
[422007747,1778453446000,-151.0,0.00015,2]
[422007770,1778453446000,-576.251148,0.00015,2]
[422007728,1778453446000,-152.0,0.00012109,2]
[422007732,1778453446000,-211977.3118786,0.00015,2]
[422007733,1778453446000,-385638.54800044,0.00015,2]
[422007729,1778453446000,-314.0,0.000149,2]
[422007731,1778453446000,-1000.0,0.00015,2]
[422007730,1778453446000,-641784.66323904,0.00015,2]
[422007734,1778453446000,-648878.13650656,0.00015,2]
[422007736,1778453446000,-151.0,0.00015,2]
[422007737,1778453446000,-1537.0,0.00015,2]
[422007735,1778453446000,-1818.45,0.00015,2]
[422007738,1778453446000,-1537.0,0.00015,2]
[422007743,1778453446000,-193.50224669,0.00015,2]
[422007745,1778453446000,-151.0,0.00015,2]
[422007744,1778453446000,-151.0,0.00015,2]
[422007739,1778453446000,-1534.0,0.00015,2]
[422007741,1778453446000,-151.0,0.00015,2]
[422007742,1778453446000,-151.0,0.00015,2]
[422007740,1778453446000,-151.0,0.00015,2]
[422007758,1778453446000,-231.903902,0.00015,2]
[422007771,1778453446000,-576.251148,0.00015,2]
[422007769,1778453446000,-576.251148,0.00015,2]
[422007775,1778453446000,-576.251148,0.00015,2]
[422007794,1778453446000,-788.49815,0.00015,2]
[422007800,1778453446000,-151.0,0.00015,2]
[422007799,1778453446000,-151.0,0.00015,2]
[422007795,1778453446000,-788.49815,0.00015,2]
[422007796,1778453446000,-788.49815,0.00015,2]
[422007797,1778453446000,-788.49815,0.00015,2]
[422007798,1778453446000,-788.49815,0.00015,2]
[422007804,1778453446000,-330.0,0.00015014,3]
[422007803,1778453446000,-689.17587144,0.00015,2]
[422007805,1778453446000,-200.0,0.00015049,2]
[422007815,1778453446000,-447.0854,0.00015068,2]
[422007809,1778453446000,-250.0,0.00015068,2]
[422007822,1778453446000,-447.0854,0.00015068,2]
[422007821,1778453446000,-447.0854,0.00015068,2]
[422007811,1778453446000,-269.79291148,0.00015068,2]
[422007813,1778453446000,-239.18,0.00015068,2]
[422007807,1778453446000,-165.6,0.00015054,2]
[422007819,1778453446000,-447.0854,0.00015068,2]
[422007773,1778453446000,-576.251148,0.00015,2]
[422007790,1778453446000,-788.49815,0.00015,2]
[422007792,1778453446000,-788.49815,0.00015,2]
[422007817,1778453446000,-447.0854,0.00015068,2]
[422007793,1778453446000,-788.49815,0.00015,2]
[422007824,1778453446000,-447.0854,0.00015068,2]
[422007802,1778453446000,-151.0,0.00015,2]
[422007772,1778453446000,-576.251148,0.00015,2]
[422007779,1778453446000,-576.251148,0.00015,2]
[422007774,1778453446000,-576.251148,0.00015,2]
[422007776,1778453446000,-333.33334,0.00015,2]
[422007777,1778453446000,-333.33333,0.00015,2]
[422007780,1778453446000,-576.251148,0.00015,2]
[422007784,1778453446000,-151.0,0.00015,2]
[422007782,1778453446000,-151.0,0.00015,2]
[422007778,1778453446000,-333.33334,0.00015,2]
[422007783,1778453446000,-151.0,0.00015,2]
[422007788,1778453446000,-788.49815,0.00015,2]
[422007787,1778453446000,-788.49815,0.00015,2]
[422007785,1778453446000,-151.0,0.00015,2]
[422007789,1778453446000,-788.49815,0.00015,2]
[422007823,1778453446000,-447.0854,0.00015068,2]
[422007786,1778453446000,-181.860933,0.00015,2]
[422007781,1778453446000,-576.251152,0.00015,2]
[422007801,1778453446000,-151.0,0.00015,2]
[422007791,1778453446000,-788.49815,0.00015,2]
[422007878,1778453447000,-433.0,0.00015914,2]
[422007880,1778453447000,-300.0,0.00016,2]
[422007886,1778453447000,-249.61,0.00016186,2]
[422007876,1778453447000,-150.0,0.000159,2]
[422007888,1778453447000,-151.87,0.00016292,2]
[422007871,1778453447000,-150.0,0.000159,2]
[422007873,1778453447000,-150.0,0.000159,2]
[422007869,1778453447000,-150.0,0.000159,2]
[422007855,1778453447000,-250.0,0.00015616,2]
[422007884,1778453447000,-350.0,0.00016164,2]
[422007857,1778453447000,-308.0,0.000157,2]
[422007874,1778453447000,-150.0,0.000159,2]
[422007890,1778453447000,-200.0,0.0001634,2]
[422007917,1778453447000,-151.0,0.00016438,2]
[422007882,1778453447000,-150.0,0.00016137,2]
[422007894,1778453447000,-151.87,0.00016397,2]
[422007896,1778453447000,-375.2,0.00016438,2]
[422007898,1778453447000,-468.27137336,0.00016438,2]
[422007912,1778453447000,-500.0,0.00016438,2]
[422007915,1778453447000,-500.0,0.00016438,2]
[422007900,1778453447000,-289.45986171,0.00016438,2]
[422007919,1778453447000,-151.0,0.00016438,2]
[422007905,1778453447000,-500.0,0.00016438,2]
[422007906,1778453447000,-500.0,0.00016438,2]
[422007908,1778453447000,-614.83793855,0.00016438,2]
[422007866,1778453447000,-350.0,0.00015896,2]
[422007892,1778453447000,-155.0,0.00016389,2]
[422007864,1778453447000,-1680.0,0.00015843,2]
[422007828,1778453447000,-447.0854,0.00015068,2]
[422007859,1778453447000,-1000.0,0.000157,2]
[422007826,1778453447000,-447.0854,0.00015068,2]
[422007835,1778453447000,-447.0854,0.00015068,2]
[422007831,1778453447000,-447.0854,0.00015068,2]
[422007829,1778453447000,-447.0854,0.00015068,2]
[422007827,1778453447000,-447.0854,0.00015068,2]
[422007836,1778453447000,-447.0854,0.00015068,2]
[422007914,1778453447000,-502.0447285,0.00016438,2]
[422007830,1778453447000,-447.0854,0.00015068,2]
[422007833,1778453447000,-447.0854,0.00015068,2]
[422007832,1778453447000,-447.0854,0.00015068,2]
[422007834,1778453447000,-447.0854,0.00015068,2]
[422007838,1778453447000,-150.0,0.00015068,2]
[422007862,1778453447000,-165.69,0.00015835,2]
[422007837,1778453447000,-447.08539,0.00015068,2]
[422007846,1778453447000,-207.38,0.00015464,2]
[422007847,1778453447000,-173.36,0.00015464,2]
[422007840,1778453447000,-166.66,0.00015182,2]
[422007841,1778453447000,-200.0,0.00015199,2]
[422007845,1778453447000,-1088.39,0.00015464,2]
[422007844,1778453447000,-514.59526642,0.000154,2]
[422007843,1778453447000,-1517.64,0.000153,2]
[422007842,1778453447000,-231.09,0.00015231,2]
[422007853,1778453447000,-1236.31465612,0.000155,2]
[422007851,1778453447000,-155.70472708,0.0001549,2]
[422007849,1778453447000,-151.0,0.00015476,2]
[422007860,1778453447000,-2268.23882591,0.00015807,2]
[422007839,1778453447000,-1000.0,0.00015121,2]
[422007902,1778453447000,-500.0,0.00016438,2]
[422007825,1778453447000,-447.0854,0.00015068,2]
[422007910,1778453447000,-500.0,0.00016438,2]
[422007957,1778453447000,-501.44323485,0.00016438,2]
[422007948,1778453447000,-1136.281255,0.00016438,2]
[422007955,1778453447000,-500.0,0.00016438,2]
[422007951,1778453447000,-161.2090087,0.00016438,2]
[422007947,1778453447000,-1136.281255,0.00016438,2]
[422007952,1778453447000,-500.7987881,0.00016438,2]
[422007958,1778453447000,-500.0,0.00016438,2]
[422007954,1778453447000,-318.15074347,0.00016438,2]
[422007959,1778453447000,-500.0,0.00016438,2]
[422007961,1778453447000,-500.0,0.00016438,2]
[422007969,1778453447000,-163.226582,0.00016438,2]
[422007964,1778453447000,-151.0,0.00016438,2]
[422007950,1778453447000,-500.0,0.00016438,2]
[422007965,1778453447000,-151.0,0.00016438,2]
[422007962,1778453447000,-151.0,0.00016438,2]
[422007967,1778453447000,-151.0,0.00016438,2]
[422007968,1778453447000,-151.0,0.00016438,2]
[422007963,1778453447000,-151.0,0.00016438,2]
[422007970,1778453447000,-600.0,0.00016443,2]
[422007971,1778453447000,-272.88,0.00016443,2]
[422007976,1778453447000,-227.81,0.00016443,2]
[422007973,1778453447000,-387.95,0.00016443,2]
[422007975,1778453447000,-227.81,0.00016443,2]
[422007972,1778453447000,-387.95,0.00016443,2]
[422007974,1778453447000,-387.95,0.00016443,2]
[422007904,1778453447000,-501.40664377,0.00016438,2]
[422007966,1778453447000,-151.0,0.00016438,2]
[422007956,1778453447000,-500.0,0.00016438,2]
[422007960,1778453447000,-500.0,0.00016438,2]
[422007949,1778453447000,-1136.28125548,0.00016438,2]
[422007953,1778453447000,-500.0,0.00016438,2]
[422007921,1778453447000,-151.0,0.00016438,2]
[422007923,1778453447000,-152.391066,0.00016438,2]
[422007924,1778453447000,-500.0,0.00016438,2]
[422007930,1778453447000,-1136.281255,0.00016438,2]
[422007927,1778453447000,-1136.281255,0.00016438,2]
[422007931,1778453447000,-1136.281255,0.00016438,2]
[422007926,1778453447000,-1136.281255,0.00016438,2]
[422007920,1778453447000,-151.0,0.00016438,2]
[422007928,1778453447000,-1136.281255,0.00016438,2]
[422007932,1778453447000,-1136.281255,0.00016438,2]
[422007925,1778453447000,-1136.281255,0.00016438,2]
[422007922,1778453447000,-151.0,0.00016438,2]
[422007929,1778453447000,-1136.281255,0.00016438,2]
[422007933,1778453447000,-1136.281255,0.00016438,2]
[422007946,1778453447000,-1136.281255,0.00016438,2]
[422007935,1778453447000,-1136.281255,0.00016438,2]
[422007944,1778453447000,-1136.281255,0.00016438,2]
[422007942,1778453447000,-1136.281255,0.00016438,2]
[422007940,1778453447000,-517.16375829,0.00016438,2]
[422007943,1778453447000,-500.0,0.00016438,2]
[422007939,1778453447000,-500.0,0.00016438,2]
[422007938,1778453447000,-500.0,0.00016438,2]
[422007937,1778453447000,-1136.281255,0.00016438,2]
[422007936,1778453447000,-1136.281255,0.00016438,2]
[422007934,1778453447000,-1136.281255,0.00016438,2]
[422007945,1778453447000,-1136.281255,0.00016438,2]
[422007941,1778453447000,-500.0,0.00016438,2]
[422008025,1778453448000,-1310.70855388,0.00017534,2]
[422008016,1778453448000,-1818.45,0.00017,2]
[422008026,1778453448000,-1388.73166699,0.00017534,2]
[422008014,1778453448000,-617.72809149,0.00016986,2]
[422008024,1778453448000,-160.99,0.000175,2]
[422008008,1778453448000,-1001.67394318,0.00016986,2]
[422008010,1778453448000,-1000.0,0.00016986,2]
[422008009,1778453448000,-1000.0,0.00016986,2]
[422008013,1778453448000,-928.58300268,0.00016986,2]
[422008007,1778453448000,-1000.0,0.00016986,2]
[422008011,1778453448000,-1000.0,0.00016986,2]
[422008015,1778453448000,-1000.0,0.00016986,2]
[422008018,1778453448000,-789.04,0.00017226,2]
[422008031,1778453448000,-1504.32156241,0.00017534,2]
[422008020,1778453448000,-1863.64,0.00017354,2]
[422008019,1778453448000,-550.0,0.0001726,2]
[422008021,1778453448000,-168.84,0.00017386,2]
[422008023,1778453448000,-151.0,0.00017476,2]
[422008017,1778453448000,-736.0,0.00017218,2]
[422008028,1778453448000,-1500.0,0.00017534,2]
[422008027,1778453448000,-500.0,0.00017534,2]
[422008029,1778453448000,-168.81759909,0.00017534,2]
[422008030,1778453448000,-1500.0,0.00017534,2]
[422008032,1778453448000,-1500.0,0.00017534,2]
[422008034,1778453448000,-1500.0,0.00017534,2]
[422008005,1778453448000,-500.0,0.00016986,2]
[422008022,1778453448000,-2351.0,0.00017428,2]
[422008004,1778453448000,-1000.0,0.00016986,2]
[422007977,1778453448000,-227.81,0.00016443,2]
[422008006,1778453448000,-1000.0,0.00016986,2]
[422008033,1778453448000,-1500.0,0.00017534,2]
[422007978,1778453448000,-489.61,0.00016474,2]
[422007982,1778453448000,-600.0,0.00016512,2]
[422007980,1778453448000,-2000.0,0.00016481,2]
[422007981,1778453448000,-2164.35905628,0.000165,2]
[422007983,1778453448000,-272.88,0.00016512,2]
[422007979,1778453448000,-151.0,0.00016476,2]
[422007989,1778453448000,-622.19608943,0.00016735,2]
[422007990,1778453448000,-274.0,0.000168,2]
[422007985,1778453448000,-600.0,0.00016513,2]
[422007984,1778453448000,-151.87,0.00016512,2]
[422007987,1778453448000,-220.65,0.00016712,2]
[422007986,1778453448000,-272.88,0.00016517,2]
[422007988,1778453448000,-450.0,0.00016712,2]
[422007992,1778453448000,-208.10422263,0.00016834,2]
[422007993,1778453448000,-160.0,0.00016834,2]
[422007991,1778453448000,-214.7734975,0.00016834,2]
[422007994,1778453448000,-1577.09,0.00016922,2]
[422008002,1778453448000,-500.0,0.00016986,2]
[422007995,1778453448000,-499.99,0.00016922,2]
[422008000,1778453448000,-1000.0,0.00016986,2]
[422007998,1778453448000,-1000.0,0.00016986,2]
[422008001,1778453448000,-183.40202408,0.00016986,2]
[422007997,1778453448000,-313.12800716,0.00016986,2]
[422007996,1778453448000,-231.09,0.00016924,2]
[422007999,1778453448000,-1001.51069064,0.00016986,2]
[422008003,1778453448000,-1110.04999599,0.00016986,2]
[422008012,1778453448000,-1000.0,0.00016986,2]
[422008035,1778453448000,-250.0,0.00017552,2]
[422008048,1778453448000,-1500.0,0.00018082,2]
[422008038,1778453448000,-249.61,0.00017804,2]
[422008071,1778453448000,-163.0,0.00019,2]
[422008073,1778453448000,-363.60720214,0.0001901,7]
[422008072,1778453448000,-1184.0,0.00019,2]
[422008068,1778453448000,-19386.69964538,0.00019,2]
[422008069,1778453448000,-159.0,0.00019,2]
[422008075,1778453448000,-792.0,0.0001917,2]
[422008078,1778453448000,-250.0,0.00019178,2]
[422008077,1778453448000,-250.0,0.00019178,2]
[422008084,1778453448000,-167.909271,0.00019178,2]
[422008076,1778453448000,-250.0,0.00019178,2]
[422008081,1778453448000,-167.909271,0.00019178,2]
[422008036,1778453448000,-151.2938,0.00017751,2]
[422008070,1778453448000,-156.0,0.00019,2]
[422008082,1778453448000,-167.909271,0.00019178,2]
[422008079,1778453448000,-260.87284069,0.00019178,2]
[422008083,1778453448000,-167.909271,0.00019178,2]
[422008086,1778453448000,-167.909271,0.00019178,2]
[422008088,1778453448000,-167.909271,0.00019178,2]
[422008090,1778453448000,-167.909271,0.00019178,2]
[422008087,1778453448000,-167.909271,0.00019178,2]
[422008089,1778453448000,-167.909271,0.00019178,2]
[422008094,1778453448000,-167.909271,0.00019178,2]
[422008092,1778453448000,-167.909271,0.00019178,2]
[422008093,1778453448000,-167.909271,0.00019178,2]
[422008091,1778453448000,-167.909271,0.00019178,2]
[422008095,1778453448000,-167.909271,0.00019178,2]
[422008080,1778453448000,-839.06718577,0.00019178,2]
[422008067,1778453448000,-274.87184288,0.00019,2]
[422008085,1778453448000,-167.909271,0.00019178,2]
[422008074,1778453448000,-1818.45,0.000191,2]
[422008066,1778453448000,-986.03295267,0.00019,2]
[422008037,1778453448000,-556.94,0.000178,2]
[422008040,1778453448000,-155.0,0.00017879,2]
[422008050,1778453448000,-536.95056878,0.0001814,2]